[Event "*** Titled Tuesday Blitz"]
[Site "Chess.com"]
[Date "2020.03.03"]
[Round "9"]
[White "elohunter1999"]
[Black "violetflower04"]
[Result "1-0"]
[WhiteElo "2456"]
[BlackElo "2233"]
[TimeControl "180+1"]
[EndTime "14:44:23 PST"]
[Termination "elohunter1999 won by resignation"]

1. e4 {[%clk 0:03:00.9]} 1... c5 {[%clk 0:02:59.3]} 2. Nf3 {[%clk 0:03:00.3]}
2... d6 {[%clk 0:02:58.9]} 3. d4 {[%clk 0:03:00.8]} 3... cxd4 {[%clk 0:02:59]}
4. Nxd4 {[%clk 0:03:01.6]} 4... Nf6 {[%clk 0:02:59.4]} 5. Nc3 {[%clk 0:03:02.1]}
5... Nc6 {[%clk 0:02:59.2]} 6. Bg5 {[%clk 0:03:01]} 6... e6 {[%clk 0:02:59.2]}
7. Qd2 {[%clk 0:03:01.3]} 7... a6 {[%clk 0:02:59.1]} 8. O-O-O {[%clk 0:03:01.8]}
8... Bd7 {[%clk 0:02:58.8]} 9. f4 {[%clk 0:03:02.3]} 9... b5 {[%clk 0:02:58.9]}
10. Bxf6 {[%clk 0:03:01.9]} 10... gxf6 {[%clk 0:02:59.5]} 11. Kb1 {[%clk
0:03:02.2]} 11... Qb6 {[%clk 0:02:58.5]} 12. Nce2 {[%clk 0:03:02.5]} 12... h5
{[%clk 0:02:51]} 13. h4 {[%clk 0:03:02.3]} 13... Qc5 {[%clk 0:02:44.9]} 14. Rh3
{[%clk 0:03:00.8]} 14... b4 {[%clk 0:02:38.5]} 15. c3 {[%clk 0:02:24.2]} 15...
Rb8 {[%clk 0:02:25.2]} 16. Ka1 {[%clk 0:02:21.6]} 16... Na5 {[%clk 0:01:54.3]}
17. cxb4 {[%clk 0:02:13.9]} 17... Rxb4 {[%clk 0:01:53.9]} 18. Rc3 {[%clk
0:02:09.7]} 18... Qb6 {[%clk 0:01:52.8]} 19. Nc1 {[%clk 0:02:00.1]} 19... Bg7
{[%clk 0:01:26.4]} 20. f5 {[%clk 0:01:40.5]} 20... Bh6 {[%clk 0:01:23.9]} 21.
Qc2 {[%clk 0:01:36]} 21... Ke7 {[%clk 0:01:18.3]} 22. Ncb3 {[%clk 0:01:21.6]}
22... Rb8 {[%clk 0:01:11.4]} 23. Rc7 {[%clk 0:01:12.6]} 23... Nxb3+ {[%clk
0:01:05.5]} 24. Nxb3 {[%clk 0:01:10.6]} 24... Ra4 {[%clk 0:00:54.8]} 25. Rxd7+
{[%clk 0:01:03.3]} 25... Kxd7 {[%clk 0:00:49.8]} 26. Nc5+ {[%clk 0:01:02.6]}
26... Ke7 {[%clk 0:00:44.1]} 27. Nxa4 {[%clk 0:01:02.4]} 27... Bf4 {[%clk
0:00:41.6]} 28. Nxb6 {[%clk 0:01:01.4]} 1-0

[Event "*** Titled Tuesday Blitz"]
[Site "Chess.com"]
[Date "2020.03.03"]
[Round "9"]
[White "2165149677570"]
[Black "kismet6"]
[Result "1-0"]
[WhiteElo "2237"]
[BlackElo "2001"]
[TimeControl "180+1"]
[EndTime "14:44:24 PST"]
[Termination "2165149677570 won by resignation"]

1. e4 {[%clk 0:03:00.9]} 1... c5 {[%clk 0:02:59.4]} 2. Nf3 {[%clk 0:03:01.3]}
2... Nc6 {[%clk 0:02:59.1]} 3. Bb5 {[%clk 0:03:01.8]} 3... Nd4 {[%clk
0:02:57.4]} 4. Nxd4 {[%clk 0:03:00.9]} 4... cxd4 {[%clk 0:02:57.6]} 5. O-O
{[%clk 0:03:01.1]} 5... e6 {[%clk 0:02:57.4]} 6. c3 {[%clk 0:02:59.8]} 6... a6
{[%clk 0:02:56.3]} 7. Be2 {[%clk 0:02:59.5]} 7... Nf6 {[%clk 0:02:55.4]} 8. e5
{[%clk 0:02:58.8]} 8... Nd5 {[%clk 0:02:55.2]} 9. cxd4 {[%clk 0:02:59]} 9... Qb6
{[%clk 0:02:54.9]} 10. Nc3 {[%clk 0:02:57.5]} 10... Qxd4 {[%clk 0:02:54.7]} 11.
Nxd5 {[%clk 0:02:55.2]} 11... exd5 {[%clk 0:02:45.3]} 12. Bf3 {[%clk 0:02:49.3]}
12... b5 {[%clk 0:02:39.7]} 13. d3 {[%clk 0:02:28.6]} 13... Bb7 {[%clk
0:02:31.5]} 14. Be3 {[%clk 0:02:25.5]} 14... Qh4 {[%clk 0:02:27.4]} 15. Qb3
{[%clk 0:02:22.4]} 15... d4 {[%clk 0:01:44]} 16. Bxb7 {[%clk 0:01:49]} 16... Rb8
{[%clk 0:01:43.1]} 17. Bd5 {[%clk 0:01:34.8]} 17... dxe3 {[%clk 0:01:41.4]} 18.
Bxf7+ {[%clk 0:01:32.5]} 18... Kd8 {[%clk 0:01:40.4]} 19. fxe3 {[%clk 0:01:33]}
19... Rb6 {[%clk 0:01:26.3]} 20. Rf3 {[%clk 0:01:20]} 20... Rh6 {[%clk 0:01:22]}
21. Rh3 {[%clk 0:01:19.8]} 21... Qg5 {[%clk 0:01:21.7]} 22. Rxh6 {[%clk
0:01:16.7]} 22... Qxe3+ {[%clk 0:01:21.4]} 23. Kh1 {[%clk 0:01:16.6]} 23... gxh6
{[%clk 0:01:11.4]} 24. Qd5 {[%clk 0:01:15.8]} 24... Bc5 {[%clk 0:01:03.7]} 25.
e6 {[%clk 0:01:06.9]} 25... d6 {[%clk 0:01:00.9]} 26. Qb7 {[%clk 0:01:06.2]} 1-0

[Event "*** Titled Tuesday Blitz"]
[Site "Chess.com"]
[Date "2020.03.03"]
[Round "9"]
[White "PowerThinking2650"]
[Black "IngOscarArdila"]
[Result "1-0"]
[WhiteElo "2388"]
[BlackElo "2157"]
[TimeControl "180+1"]
[EndTime "14:44:25 PST"]
[Termination "PowerThinking2650 won by resignation"]

1. e4 {[%clk 0:03:00.9]} 1... e5 {[%clk 0:02:59.4]} 2. Nf3 {[%clk 0:02:59.6]}
2... Nf6 {[%clk 0:02:59.8]} 3. Nc3 {[%clk 0:02:58.8]} 3... Nc6 {[%clk
0:02:59.7]} 4. d4 {[%clk 0:02:58.5]} 4... exd4 {[%clk 0:02:59.4]} 5. Nxd4 {[%clk
0:02:59.4]} 5... Bb4 {[%clk 0:02:59.6]} 6. Nxc6 {[%clk 0:02:58.4]} 6... bxc6
{[%clk 0:03:00.5]} 7. Bd3 {[%clk 0:02:57.9]} 7... d5 {[%clk 0:03:00.7]} 8. exd5
{[%clk 0:02:56.4]} 8... cxd5 {[%clk 0:03:01.6]} 9. O-O {[%clk 0:02:56]} 9... O-O
{[%clk 0:03:01.1]} 10. Bg5 {[%clk 0:02:54.9]} 10... c6 {[%clk 0:03:01.1]} 11.
Qf3 {[%clk 0:02:52.6]} 11... Bd6 {[%clk 0:03:01.1]} 12. Bxf6 {[%clk 0:02:52.3]}
12... Qxf6 {[%clk 0:03:01.2]} 13. Qxf6 {[%clk 0:02:52.3]} 13... gxf6 {[%clk
0:03:02.1]} 14. Ne2 {[%clk 0:02:52.4]} 14... Be5 {[%clk 0:03:01.8]} 15. Rab1
{[%clk 0:02:51.6]} 15... Rb8 {[%clk 0:03:01.5]} 16. b4 {[%clk 0:02:26.5]} 16...
Bd7 {[%clk 0:02:40.7]} 17. c3 {[%clk 0:02:26.3]} 17... Rfe8 {[%clk 0:02:40.1]}
18. Nd4 {[%clk 0:02:19.3]} 18... a5 {[%clk 0:02:20.3]} 19. bxa5 {[%clk
0:01:54.4]} 19... c5 {[%clk 0:02:20.1]} 20. Bb5 {[%clk 0:01:44.1]} 20... Red8
{[%clk 0:01:35.8]} 21. Nc6 {[%clk 0:01:12.2]} 21... Bxc6 {[%clk 0:01:34.2]} 22.
Bxc6 {[%clk 0:01:12.1]} 22... Rxb1 {[%clk 0:01:32.9]} 23. Rxb1 {[%clk
0:01:09.3]} 23... Bxc3 {[%clk 0:01:33.1]} 24. a6 {[%clk 0:01:07.2]} 24... d4
{[%clk 0:00:53.7]} 25. a7 {[%clk 0:01:03.3]} 25... d3 {[%clk 0:00:51.2]} 26. Rb8
{[%clk 0:01:00.3]} 1-0

[Event "*** Titled Tuesday Blitz"]
[Site "Chess.com"]
[Date "2020.03.03"]
[Round "9"]
[White "kingofthenil"]
[Black "marianokar"]
[Result "1-0"]
[WhiteElo "2580"]
[BlackElo "2406"]
[TimeControl "180+1"]
[EndTime "14:44:27 PST"]
[Termination "kingofthenil won by resignation"]

1. e4 {[%clk 0:03:00.9]} 1... c5 {[%clk 0:02:59.5]} 2. d3 {[%clk 0:03:00.9]}
2... g6 {[%clk 0:02:58.4]} 3. g3 {[%clk 0:03:01.8]} 3... Bg7 {[%clk 0:02:58.7]}
4. Bg2 {[%clk 0:03:02.7]} 4... Nc6 {[%clk 0:02:58.9]} 5. f4 {[%clk 0:03:03.6]}
5... d6 {[%clk 0:02:56.7]} 6. Nf3 {[%clk 0:03:04.5]} 6... e6 {[%clk 0:02:57]} 7.
O-O {[%clk 0:03:05.4]} 7... Nge7 {[%clk 0:02:57.3]} 8. c3 {[%clk 0:03:06.3]}
8... f5 {[%clk 0:02:54.6]} 9. Be3 {[%clk 0:03:07.2]} 9... O-O {[%clk 0:02:52.5]}
10. Nbd2 {[%clk 0:03:07.7]} 10... b6 {[%clk 0:02:30.8]} 11. Re1 {[%clk 0:03:08]}
11... Ba6 {[%clk 0:01:45.5]} 12. Qc2 {[%clk 0:03:07.1]} 12... Qd7 {[%clk
0:01:43.6]} 13. Bf2 {[%clk 0:03:07.5]} 13... Rae8 {[%clk 0:01:42.3]} 14. Rad1
{[%clk 0:02:57.7]} 14... d5 {[%clk 0:01:33]} 15. exd5 {[%clk 0:02:40.2]} 15...
exd5 {[%clk 0:01:12.1]} 16. Nb3 {[%clk 0:02:27.9]} 16... Bb7 {[%clk 0:01:05.1]}
17. d4 {[%clk 0:02:27.7]} 17... c4 {[%clk 0:01:02]} 18. Nbd2 {[%clk 0:02:26.9]}
18... Nc8 {[%clk 0:00:59.9]} 19. Ne5 {[%clk 0:02:24.1]} 19... Qd8 {[%clk
0:00:56]} 20. Ndxc4 {[%clk 0:02:21.3]} 20... dxc4 {[%clk 0:00:50.6]} 21. Nxc6
{[%clk 0:02:19.1]} 21... Qd6 {[%clk 0:00:43.8]} 22. Qa4 {[%clk 0:02:09.4]} 22...
Kh8 {[%clk 0:00:18.6]} 23. Qxc4 {[%clk 0:02:06]} 23... Qc7 {[%clk 0:00:16.4]}
24. Na5 {[%clk 0:01:55.5]} 24... Qxc4 {[%clk 0:00:08.1]} 25. Nxc4 {[%clk
0:01:56.4]} 25... Bxg2 {[%clk 0:00:06.2]} 26. Kxg2 {[%clk 0:01:57.3]} 26... b5
{[%clk 0:00:05.4]} 27. Ne5 {[%clk 0:01:55.7]} 27... Nd6 {[%clk 0:00:05.6]} 28.
d5 {[%clk 0:01:52.7]} 28... Ne4 {[%clk 0:00:05.7]} 29. Bd4 {[%clk 0:01:51.1]}
29... Rd8 {[%clk 0:00:05.6]} 30. Nc6 {[%clk 0:01:49.3]} 30... Rxd5 {[%clk
0:00:04.7]} 31. Bxg7+ {[%clk 0:01:48.4]} 1-0

[Event "*** Titled Tuesday Blitz"]
[Site "Chess.com"]
[Date "2020.03.03"]
[Round "9"]
[White "karinachess1"]
[Black "reigningmvp"]
[Result "1-0"]
[WhiteElo "2506"]
[BlackElo "2299"]
[TimeControl "180+1"]
[EndTime "14:44:38 PST"]
[Termination "karinachess1 won by resignation"]

1. c4 {[%clk 0:03:00.9]} 1... e5 {[%clk 0:02:59.4]} 2. Nc3 {[%clk 0:02:56.3]}
2... Bb4 {[%clk 0:02:58.5]} 3. Qc2 {[%clk 0:02:55.2]} 3... Nc6 {[%clk
0:02:55.5]} 4. e3 {[%clk 0:02:52.1]} 4... Bxc3 {[%clk 0:02:46.9]} 5. Qxc3 {[%clk
0:02:51.5]} 5... d6 {[%clk 0:02:47.5]} 6. d4 {[%clk 0:02:44.1]} 6... Qe7 {[%clk
0:02:45.3]} 7. Be2 {[%clk 0:02:40.1]} 7... f5 {[%clk 0:02:44.3]} 8. Nf3 {[%clk
0:02:38.3]} 8... Nf6 {[%clk 0:02:42.3]} 9. O-O {[%clk 0:02:31.8]} 9... O-O
{[%clk 0:02:41.4]} 10. dxe5 {[%clk 0:02:25.5]} 10... dxe5 {[%clk 0:02:37.4]} 11.
b3 {[%clk 0:02:22.8]} 11... Ne4 {[%clk 0:02:35.8]} 12. Qc2 {[%clk 0:02:21.7]}
12... Be6 {[%clk 0:02:29.8]} 13. Bb2 {[%clk 0:02:20.3]} 13... Bf7 {[%clk
0:02:28.1]} 14. Rad1 {[%clk 0:02:16.4]} 14... g5 {[%clk 0:02:14.9]} 15. Bd3
{[%clk 0:02:09.5]} 15... Nb4 {[%clk 0:02:13.8]} 16. Qb1 {[%clk 0:02:07.5]} 16...
Nxd3 {[%clk 0:02:10]} 17. Qxd3 {[%clk 0:02:04]} 17... Nc5 {[%clk 0:02:09.2]} 18.
Qc3 {[%clk 0:01:59]} 18... Bh5 {[%clk 0:02:00.7]} 19. Rd5 {[%clk 0:01:36.7]}
19... Ne4 {[%clk 0:01:43.8]} 20. Qxe5 {[%clk 0:01:28.1]} 20... Qxe5 {[%clk
0:01:41.2]} 21. Nxe5 {[%clk 0:01:25]} 21... Rad8 {[%clk 0:01:38.7]} 22. Nd7
{[%clk 0:01:13.2]} 22... Rfe8 {[%clk 0:01:32.4]} 23. f3 {[%clk 0:01:01.3]} 23...
c6 {[%clk 0:01:32.7]} 24. Rd3 {[%clk 0:00:51.9]} 24... Rxd7 {[%clk 0:01:30.2]}
25. Rxd7 {[%clk 0:00:50.9]} 25... Nc5 {[%clk 0:01:30.3]} 26. Rdd1 {[%clk
0:00:43.6]} 26... Rxe3 {[%clk 0:01:30.2]} 27. Bd4 {[%clk 0:00:43.5]} 27... Re2
{[%clk 0:01:24.5]} 28. Bxc5 {[%clk 0:00:42.8]} 28... g4 {[%clk 0:01:25.4]} 29.
Rf2 {[%clk 0:00:39.8]} 29... gxf3 {[%clk 0:01:23.9]} 30. gxf3 {[%clk 0:00:39.1]}
30... Re6 {[%clk 0:01:21.9]} 31. Rd8+ {[%clk 0:00:36.7]} 31... Be8 {[%clk
0:01:13.4]} 32. Kf1 {[%clk 0:00:31.3]} 32... Kf7 {[%clk 0:01:09.9]} 33. Re2
{[%clk 0:00:30.2]} 1-0

[Event "*** Titled Tuesday Blitz"]
[Site "Chess.com"]
[Date "2020.03.03"]
[Round "9"]
[White "deBaller"]
[Black "ChainsOfFantasia"]
[Result "1-0"]
[WhiteElo "2380"]
[BlackElo "2519"]
[TimeControl "180+1"]
[EndTime "14:44:46 PST"]
[Termination "deBaller won by resignation"]

1. e4 {[%clk 0:03:00.9]} 1... e6 {[%clk 0:02:59.7]} 2. d4 {[%clk 0:03:00.1]}
2... d5 {[%clk 0:03:00.2]} 3. Nd2 {[%clk 0:03:00.5]} 3... c5 {[%clk 0:02:58]} 4.
exd5 {[%clk 0:03:00.4]} 4... Qxd5 {[%clk 0:02:57.3]} 5. Ngf3 {[%clk 0:03:00.7]}
5... cxd4 {[%clk 0:02:57.1]} 6. Bc4 {[%clk 0:03:01]} 6... Qd7 {[%clk 0:02:57.6]}
7. O-O {[%clk 0:03:01.5]} 7... Nc6 {[%clk 0:02:58.1]} 8. Nb3 {[%clk 0:03:01.9]}
8... Nf6 {[%clk 0:02:57.8]} 9. Nbxd4 {[%clk 0:03:02.3]} 9... Nxd4 {[%clk
0:02:58.6]} 10. Nxd4 {[%clk 0:03:02.5]} 10... a6 {[%clk 0:02:58.8]} 11. Re1
{[%clk 0:02:59.6]} 11... Qc7 {[%clk 0:02:55.6]} 12. Qe2 {[%clk 0:02:58.8]} 12...
Bd6 {[%clk 0:02:54]} 13. Bg5 {[%clk 0:02:55.5]} 13... Bxh2+ {[%clk 0:02:51.7]}
14. Kh1 {[%clk 0:02:43.5]} 14... Bf4 {[%clk 0:02:51.1]} 15. Bxe6 {[%clk
0:02:18.1]} 15... O-O {[%clk 0:01:47.5]} 16. Bxf6 {[%clk 0:02:14.9]} 16... fxe6
{[%clk 0:01:40.4]} 17. Nxe6 {[%clk 0:02:11.6]} 17... Qf7 {[%clk 0:01:08.3]} 18.
Nxf8 {[%clk 0:01:38.8]} 18... Qxf6 {[%clk 0:01:06.7]} 19. Kg1 {[%clk 0:01:38.5]}
19... Qxf8 {[%clk 0:01:04.6]} 20. Qc4+ {[%clk 0:01:38.2]} 20... Kh8 {[%clk
0:01:02.8]} 21. Qxf4 {[%clk 0:01:37.8]} 21... Bf5 {[%clk 0:00:59.5]} 22. Re5
{[%clk 0:01:33.6]} 22... Bxc2 {[%clk 0:00:58.6]} 23. Qxf8+ {[%clk 0:01:28.8]}
23... Rxf8 {[%clk 0:00:59.5]} 24. Rc1 {[%clk 0:01:26.2]} 24... Ba4 {[%clk
0:00:58.6]} 25. Rc7 {[%clk 0:01:20.9]} 25... Bc6 {[%clk 0:00:58.2]} 26. Ree7
{[%clk 0:01:20.8]} 26... Rg8 {[%clk 0:00:58.5]} 27. g4 {[%clk 0:01:16.4]} 27...
h6 {[%clk 0:00:58.4]} 28. f4 {[%clk 0:01:10]} 28... Rf8 {[%clk 0:00:49.9]} 29.
f5 {[%clk 0:01:09.4]} 29... h5 {[%clk 0:00:49.3]} 30. Rxg7 {[%clk 0:01:07.5]}
30... Re8 {[%clk 0:00:37.8]} 31. Rh7+ {[%clk 0:01:01]} 31... Kg8 {[%clk
0:00:37.3]} 32. Rcg7+ {[%clk 0:01:01.4]} 32... Kf8 {[%clk 0:00:36.8]} 33. f6
{[%clk 0:01:02.1]} 1-0

[Event "*** Titled Tuesday Blitz"]
[Site "Chess.com"]
[Date "2020.03.03"]
[Round "9"]
[White "chesstatour"]
[Black "DinaBelenkaya"]
[Result "0-1"]
[WhiteElo "2065"]
[BlackElo "2282"]
[TimeControl "180+1"]
[EndTime "14:44:48 PST"]
[Termination "DinaBelenkaya won on time"]

1. c4 {[%clk 0:03:00.9]} 1... e5 {[%clk 0:02:57.6]} 2. Nc3 {[%clk 0:02:58.7]}
2... Nf6 {[%clk 0:02:47.1]} 3. Nf3 {[%clk 0:02:55.8]} 3... Nc6 {[%clk
0:02:46.9]} 4. d4 {[%clk 0:02:55.3]} 4... exd4 {[%clk 0:02:28.6]} 5. Nxd4 {[%clk
0:02:49.8]} 5... Nxd4 {[%clk 0:02:21.6]} 6. Qxd4 {[%clk 0:02:48.6]} 6... Bb4
{[%clk 0:02:14.1]} 7. Bg5 {[%clk 0:02:32]} 7... Be7 {[%clk 0:02:00.9]} 8. e4
{[%clk 0:02:28]} 8... d6 {[%clk 0:01:59.2]} 9. Be2 {[%clk 0:02:25]} 9... O-O
{[%clk 0:01:58.6]} 10. O-O {[%clk 0:02:20]} 10... Ng4 {[%clk 0:01:56.1]} 11.
Bxe7 {[%clk 0:02:03.1]} 11... Qxe7 {[%clk 0:01:55.4]} 12. Bxg4 {[%clk
0:01:56.4]} 12... Bxg4 {[%clk 0:01:54.7]} 13. e5 {[%clk 0:01:41.5]} 13... Be6
{[%clk 0:01:46.4]} 14. exd6 {[%clk 0:01:36.9]} 14... Qxd6 {[%clk 0:01:45.1]} 15.
Qxd6 {[%clk 0:01:35.9]} 15... cxd6 {[%clk 0:01:45.4]} 16. b3 {[%clk 0:01:33.1]}
16... Rfd8 {[%clk 0:01:43.3]} 17. Rad1 {[%clk 0:01:31.3]} 17... Kf8 {[%clk
0:01:43.5]} 18. Rd2 {[%clk 0:01:29.7]} 18... Rd7 {[%clk 0:01:43.4]} 19. Rfd1
{[%clk 0:01:27]} 19... Rad8 {[%clk 0:01:43.9]} 20. Nb5 {[%clk 0:01:01]} 20... d5
{[%clk 0:01:43.3]} 21. Nxa7 {[%clk 0:00:19.7]} 21... dxc4 {[%clk 0:01:31]} 22.
Rxd7 {[%clk 0:00:16.5]} 22... Rxd7 {[%clk 0:01:29.8]} 23. Rxd7 {[%clk 0:00:15]}
23... Bxd7 {[%clk 0:01:29.9]} 24. bxc4 {[%clk 0:00:15.1]} 24... Ke7 {[%clk
0:01:27.8]} 25. a4 {[%clk 0:00:04.5]} 25... Bxa4 {[%clk 0:01:26.3]} 26. Kf1
{[%clk 0:00:03.7]} 26... Kd6 {[%clk 0:01:18.4]} 27. Ke2 {[%clk 0:00:04.1]} 27...
Kc5 {[%clk 0:01:16.9]} 28. Kd3 {[%clk 0:00:02.8]} 28... Bd7 {[%clk 0:01:15.3]}
0-1

[Event "*** Titled Tuesday Blitz"]
[Site "Chess.com"]
[Date "2020.03.03"]
[Round "9"]
[White "MikaelyanArman"]
[Black "Rsnr"]
[Result "1-0"]
[WhiteElo "2632"]
[BlackElo "2777"]
[TimeControl "180+1"]
[EndTime "14:45:12 PST"]
[Termination "MikaelyanArman won by resignation"]

1. e4 {[%clk 0:03:00.9]} 1... c6 {[%clk 0:03:00.3]} 2. c4 {[%clk 0:03:00.2]}
2... d5 {[%clk 0:03:01.2]} 3. exd5 {[%clk 0:03:00.5]} 3... cxd5 {[%clk
0:03:02.1]} 4. cxd5 {[%clk 0:03:01.3]} 4... Nf6 {[%clk 0:03:02.8]} 5. Qa4+
{[%clk 0:03:01.3]} 5... Nbd7 {[%clk 0:03:03.4]} 6. Nc3 {[%clk 0:03:01.2]} 6...
g6 {[%clk 0:03:04]} 7. Nf3 {[%clk 0:03:01.4]} 7... Bg7 {[%clk 0:03:04.5]} 8. Bc4
{[%clk 0:03:01.6]} 8... a6 {[%clk 0:03:05]} 9. O-O {[%clk 0:03:00.4]} 9... Rb8
{[%clk 0:03:05.6]} 10. Qd1 {[%clk 0:02:32.6]} 10... b5 {[%clk 0:03:05.8]} 11.
Bb3 {[%clk 0:02:31.7]} 11... Bb7 {[%clk 0:02:44.3]} 12. d6 {[%clk 0:02:10.1]}
12... O-O {[%clk 0:02:29.4]} 13. dxe7 {[%clk 0:02:08.9]} 13... Qxe7 {[%clk
0:02:30.3]} 14. d4 {[%clk 0:02:03.2]} 14... Qd6 {[%clk 0:02:25.5]} 15. Bg5
{[%clk 0:01:55]} 15... Ng4 {[%clk 0:01:46.6]} 16. d5 {[%clk 0:01:36.9]} 16...
Nc5 {[%clk 0:01:07.7]} 17. h3 {[%clk 0:01:30.2]} 17... Ne5 {[%clk 0:01:07.9]}
18. Bf4 {[%clk 0:01:16.2]} 18... b4 {[%clk 0:01:08.2]} 19. Nxe5 {[%clk
0:00:50.2]} 19... Bxe5 {[%clk 0:01:02.6]} 20. Bxe5 {[%clk 0:00:51.1]} 20... Qxe5
{[%clk 0:01:03.5]} 21. Re1 {[%clk 0:00:50.6]} 21... Qf5 {[%clk 0:00:53.8]} 22.
Bc2 {[%clk 0:00:43]} 22... Qd7 {[%clk 0:00:53.4]} 23. Ne4 {[%clk 0:00:40.4]}
23... Nxe4 {[%clk 0:00:44.8]} 24. Bxe4 {[%clk 0:00:41.3]} 24... Rfd8 {[%clk
0:00:45.4]} 25. Qd4 {[%clk 0:00:32.2]} 25... Bxd5 {[%clk 0:00:20.4]} 26. Bxd5
{[%clk 0:00:31.9]} 26... Qxd5 {[%clk 0:00:20]} 27. Re8+ {[%clk 0:00:31.5]} 1-0

[Event "*** Titled Tuesday Blitz"]
[Site "Chess.com"]
[Date "2020.03.03"]
[Round "9"]
[White "WeAintSurePal"]
[Black "SloLev"]
[Result "0-1"]
[WhiteElo "2337"]
[BlackElo "2528"]
[TimeControl "180+1"]
[EndTime "14:45:17 PST"]
[Termination "SloLev won by checkmate"]

1. e4 {[%clk 0:03:00.9]} 1... e5 {[%clk 0:02:59.1]} 2. Nf3 {[%clk 0:03:00.3]}
2... Nc6 {[%clk 0:02:59.5]} 3. Bb5 {[%clk 0:02:59.8]} 3... Nge7 {[%clk
0:02:59.2]} 4. O-O {[%clk 0:02:58.3]} 4... g6 {[%clk 0:02:58.7]} 5. d4 {[%clk
0:02:57.4]} 5... exd4 {[%clk 0:02:59.6]} 6. Bg5 {[%clk 0:02:47.2]} 6... Bg7
{[%clk 0:02:57.6]} 7. c3 {[%clk 0:02:43.9]} 7... dxc3 {[%clk 0:02:52.6]} 8. Nxc3
{[%clk 0:02:43.9]} 8... h6 {[%clk 0:02:52.6]} 9. Bh4 {[%clk 0:02:43.9]} 9... g5
{[%clk 0:02:45.7]} 10. Nxg5 {[%clk 0:02:43.4]} 10... hxg5 {[%clk 0:02:38.7]} 11.
Bxg5 {[%clk 0:02:44.3]} 11... f6 {[%clk 0:02:19.9]} 12. Bf4 {[%clk 0:02:44.3]}
12... d6 {[%clk 0:02:11.4]} 13. Nd5 {[%clk 0:02:44.1]} 13... a6 {[%clk
0:02:00.2]} 14. Ba4 {[%clk 0:02:37.7]} 14... b5 {[%clk 0:01:57.2]} 15. Bb3
{[%clk 0:02:37.5]} 15... Ne5 {[%clk 0:01:26.1]} 16. Rc1 {[%clk 0:02:34.6]} 16...
c5 {[%clk 0:01:25.4]} 17. Bg3 {[%clk 0:02:20]} 17... c4 {[%clk 0:01:24.2]} 18.
Bc2 {[%clk 0:02:19.9]} 18... Bb7 {[%clk 0:01:23.3]} 19. f4 {[%clk 0:02:19.6]}
19... Nxd5 {[%clk 0:00:48.8]} 20. exd5 {[%clk 0:02:13.7]} 20... Nd3 {[%clk
0:00:41.6]} 21. Bxd3 {[%clk 0:02:10.1]} 21... cxd3 {[%clk 0:00:42.5]} 22. Qg4
{[%clk 0:02:04.5]} 22... Qd7 {[%clk 0:00:42.6]} 23. Rfe1+ {[%clk 0:01:58.7]}
23... Kd8 {[%clk 0:00:42.7]} 24. Re6 {[%clk 0:01:58.1]} 24... Bxd5 {[%clk
0:00:38.7]} 25. Rxd6 {[%clk 0:01:53.4]} 25... Qxd6 {[%clk 0:00:38.8]} 26. Qxg7
{[%clk 0:01:53.2]} 26... Re8 {[%clk 0:00:32]} 27. f5 {[%clk 0:01:52.6]} 27...
Qb6+ {[%clk 0:00:32.4]} 28. Kh1 {[%clk 0:01:51.7]} 28... Ra7 {[%clk 0:00:30.7]}
29. Qh6 {[%clk 0:01:43.2]} 29... Rae7 {[%clk 0:00:27.5]} 30. Bh4 {[%clk
0:01:02.5]} 30... Qe3 {[%clk 0:00:24]} 31. Qxe3 {[%clk 0:00:50.7]} 31... Rxe3
{[%clk 0:00:24.9]} 32. Bxf6+ {[%clk 0:00:51.4]} 32... Kd7 {[%clk 0:00:24.7]} 33.
Bc3 {[%clk 0:00:50.5]} 33... Re2 {[%clk 0:00:22.3]} 34. Rg1 {[%clk 0:00:50.2]}
34... d2 {[%clk 0:00:21.4]} 35. f6 {[%clk 0:00:49.3]} 35... Rxg2 {[%clk
0:00:20.8]} 36. Rxg2 {[%clk 0:00:48.9]} 36... Re1# {[%clk 0:00:20.5]} 0-1

[Event "*** Titled Tuesday Blitz"]
[Site "Chess.com"]
[Date "2020.03.03"]
[Round "9"]
[White "MikeSailer"]
[Black "TheBigBadChessDad"]
[Result "0-1"]
[WhiteElo "2108"]
[BlackElo "2297"]
[TimeControl "180+1"]
[EndTime "14:45:32 PST"]
[Termination "TheBigBadChessDad won by resignation"]

1. Nf3 {[%clk 0:03:00.9]} 1... d5 {[%clk 0:02:58.6]} 2. b4 {[%clk 0:02:59.3]}
2... e6 {[%clk 0:02:57.5]} 3. Bb2 {[%clk 0:02:57.5]} 3... Nf6 {[%clk 0:02:57.3]}
4. a3 {[%clk 0:02:57.4]} 4... c5 {[%clk 0:02:53.5]} 5. bxc5 {[%clk 0:02:56.7]}
5... Bxc5 {[%clk 0:02:53]} 6. e3 {[%clk 0:02:57.3]} 6... Nbd7 {[%clk 0:02:49.2]}
7. Be2 {[%clk 0:02:57.6]} 7... O-O {[%clk 0:02:46.8]} 8. O-O {[%clk 0:02:56.8]}
8... b6 {[%clk 0:02:46.1]} 9. d4 {[%clk 0:02:56.3]} 9... Be7 {[%clk 0:02:44.4]}
10. Nbd2 {[%clk 0:02:56.7]} 10... Bb7 {[%clk 0:02:42.9]} 11. c4 {[%clk
0:02:56.3]} 11... Rc8 {[%clk 0:02:40.5]} 12. cxd5 {[%clk 0:02:55.3]} 12... Nxd5
{[%clk 0:02:29.4]} 13. Nc4 {[%clk 0:02:44.5]} 13... b5 {[%clk 0:02:18.4]} 14.
Nce5 {[%clk 0:02:39.9]} 14... Nxe5 {[%clk 0:02:14.1]} 15. Nxe5 {[%clk
0:02:38.6]} 15... Nc3 {[%clk 0:02:04.7]} 16. Bxc3 {[%clk 0:02:35.3]} 16... Rxc3
{[%clk 0:02:04.6]} 17. Bxb5 {[%clk 0:02:26.1]} 17... Qd5 {[%clk 0:02:02.1]} 18.
e4 {[%clk 0:02:06.1]} 18... Qxb5 {[%clk 0:02:00.6]} 19. Rb1 {[%clk 0:01:59.9]}
19... Qa6 {[%clk 0:01:55.8]} 20. Qd2 {[%clk 0:01:11.7]} 20... Rxa3 {[%clk
0:01:49.3]} 21. Qf4 {[%clk 0:00:51.6]} 21... Bd6 {[%clk 0:01:20.9]} 22. Qh4
{[%clk 0:00:36.1]} 22... Bxe5 {[%clk 0:01:17.5]} 23. dxe5 {[%clk 0:00:35.5]}
23... Ra4 {[%clk 0:01:05.7]} 24. Rfd1 {[%clk 0:00:22.6]} 24... Bxe4 {[%clk
0:01:01.3]} 25. Rd8 {[%clk 0:00:06.6]} 25... Bc6 {[%clk 0:00:40]} 26. Rxf8+
{[%clk 0:00:05.9]} 26... Kxf8 {[%clk 0:00:40.3]} 27. Qd8+ {[%clk 0:00:05.3]}
27... Be8 {[%clk 0:00:39.7]} 28. h3 {[%clk 0:00:04.1]} 28... Ra1 {[%clk
0:00:36.2]} 29. Rxa1 {[%clk 0:00:01]} 29... Qxa1+ {[%clk 0:00:36.2]} 30. Kh2
{[%clk 0:00:01.9]} 30... Qxe5+ {[%clk 0:00:36.4]} 31. g3 {[%clk 0:00:02.7]} 0-1